Workbook

Sheet INFO
A1: Draft spreadsheet, according to template for all EPB standards
A2: Concerns EPB standard:
A3: ISO/DIS 13370,Thermal performance of buildings — Heat transfer via the ground — Calculation methods
A4: Produced by the Project Leader for the preparation of this standard
A6: DISCLAIMER:
A7: · This spreadsheet has been developed in the framework of the preparation and revision of the set of EN or ISO standards on the energy performance of buildings, to support the European "Energy Performance of Buildings Directive" recast (EPBD-recast, directive 2010/31/EU).
A8: · It is meant for use by CEN and ISO technical committee(s) and the working group(s) working on the preparation or revision of the EPB-standard to which this spreadsheet applies. The spreadsheet supports checking that all equations in the developed standard are consistent and can be linked with other relevant standards. It is not meant to perform a full or partial energy performance calculation.
A9: · The spreadsheet supports the expert user of the standards, in particular those who want to review the content of the standard and those who want to translate the standard to a software, to understand the correct interpretation of the equations and calculation steps in the standard.
A10: · Although it has been developed with care, neither the technical committee(s), nor the working group(s) and experts related to the EPB- standard to which this spreadsheet applies warrant that the calculations and procedures in this spreadsheet are free of errors. The technical committees as well as the working groups and their respective members expressly disclaim any liability or responsibility arising from use of this spreadsheet, or any consequences thereof. Any responsibility arising from the use of this spreadsheet lies with the user.
A11: DRAFT VERSION:
A12: · As long as the associated EPB standard or any of the other EPB standards to which it is directly linked are in a draft stage, this spreadsheet is also a draft version only.
A13: WARNINGS:
A14: · Note that the spreadsheet may not allow testing all calculation options that are possible according to the standard to which it applies. This remark applies in particular but not only to limitations on the number instances of a variable that can be considered.
A15: · In case of differences, the standard should be regarded as the reference, not the spreadsheet. However, during the standard's drafting phase, shortcomings in the draft standard may have been detected and dealt with in the spreadsheets (ideally, such differences are marked).
A16: · Note also that these spreadsheets are purely intended for testing and demonstration and therefore not aiming to be user friendly or to be protected against wrong or improper use.
A17: TERMS OF USE:
A18: · The user is not allowed to redistribute a modified version of this spreadsheet.
A19: · The author(s) would appreciate your feed back on the spreadsheet via the comment sheets for the associated draft standard to be prepared by the national standards bodies during enquiry of the draft standard(s),
A22: SCOPE OF THIS SPREADSHEET:
A23: THIS SPREADSHEET PROVIDES ONE CALCULATION EXAMPLE PROVIDING 12 MONTHLY VALUES (FULL YEAR)
A24: THE OUTPUT IS SUITED TO THE INPUT FOR e.g.:
A25: - CALCULATION OF THE OVERALL (SEASONAL) THERMAL TRANSMITTANCE OF A BUILDING
A26: - CALCULATION OF ENERGY NEEDS FOR HEATING AND COOLING (MONTHLY METHOD)
A27: - CALCULATION OF ENERGY NEEDS FOR HEATING AND COOLING (HOURLY METHOD)
A33: For those responsible for the drafting of this spreadsheet on the accompanying EPB standard
A34: Intended use of this document Those responsible for the drafting of actual individual EPB standards shall - read and understand the following documents - EN/TS 16628 Basic Principles (in short "BP") - EN/TS 16629 Detailed Technical Rules (in short "DTR") - Most recent draft of ISO 52000-1 cq EN 15603 ("Overarching Standard", in short "OA")) - Most recent draft of ISO/TR 52000-2 cq EN/TR 15615 Technical report to overarching standard; - Prepare their individual EPB standard according to CEN rules, BP, DTR and OA - Prepare the accompanying technical report using the dedicated template - Prepare an accompanying XLS spreadsheet, to demonstrate inputs, output and calculation chain. This sample excel spreadsheet provides a template to help in this task.
A35: Why an Excel spreadsheet? To demonstrate the validity and required data I/O for the calculation procedure defined in the standard: - list of all input needed --> sheet "Method_input" - list of intended output --> sheet "Method_output" - calculation sequence --> sheet "Method_calculation"
A36: Method_input List in this sheet all the input required for the calculation in one time step. THIS SHEET IS REQUIRED TO DEMONSTRATE THE REQUIRED DATA INPUT.
A37: Method_calculation Detail in this sheet your calculation procedure. There should be one calculation in one cell for each equation in the standard. THIS SHEET IS REQUIRED TO DEMONSTRATE THE CALCULATION PROCEDURE.
A38: Method_output List in this sheet all the intended output of the procedure. THIS SHEET IS REQUIRED TO DEMONSTRATE THE AVAILABLE DATA OUTPUT.

Sheet Method_input
A1: THIS IS A MANDATORY SHEET All input data for the method shall be listed here. In the simplest version, values for data input in column D (both green and blue background) may be inserted manually. Varying data (green background) can be fed from the "input_series" sheet. In this sample data sheet, product data (blue background) is linked to a sample catalogue built in the "Detailed_input" sheet
A4: Name | B4: Symbol | C4: Software name | D4: Unit | E4: Value | F4: Range | G4: Origin | H4: Varying | I4: Notes
A5: Identifiers for building geometric characteristics
A6: Area of floor | B6: A | C6: A | D6: m2 | E6: 100 | F6: 0...∞ | H6: No | I6: For the part of the building being assessed
A7: Exposed perimeter | B7: P | C7: P | D7: m | E7: 40 | F7: 0...∞ | H7: No | I7: For the part of the building being assessed
A9: Thickness of the walls of the building | B9: Dw;e | C9: D_w_e | D9: m | E9: 0.3 | F9: 0...∞ | H9: No
A10: Height of the upper surface of the floor above external ground level | B10: h | C10: h | D10: m | F10: 0...∞ | H10: No
A11: Depth of basement floor below ground level | B11: z | C11: z | D11: m | F11: 0...∞ | H11: No
A13: Identifiers for thermal characteristics of building fabric
A15: Linear thermal transmittance associated with wall/floor junction | B15: Ψwf | C15: psi_wf | D15: W/(m.K) | E15: 0.05 | F15: 0…10 | G15: ISO 14683 or ISO 10211 | H15: No
A16: Thermal resistance of the floor construction (excluding the effect of the ground) | B16: Rf | C16: R_f | D16: (m2.K)/W | E16: 2.5 | F16: 0...10 | G16: ISO 13370 | H16: No
A17: Thermal conductivity of ground | B17: λ | C17: lambda_g | D17: W/(m.K) | E17: 2 | F17: 0...10 | G17: ISO 13370, Table 8 | H17: No | I17: Default value (ISO 13370 Table 9)
A18: Thermal capacity of ground per volume | B18: ρc | C18: Rhoc | D18: J/(m³·K) | E18: =2*10^6 -> 2000000 | F18: 1...4 E+06 | G18: ISO 13370, Table 8 | H18: No | I18: Default value (ISO 13370 Table 9)
A19: Periodic penetration depth | B19: d | C19: delta | D19: m | E19: 3.2 | F19: 0...10 | G19: ISO 13370 Annex H | H19: No | I19: Default value (ISO 13370 Table H.1)
A22: Identifiers for tabulated and conventional values
A23: external surface resistance | B23: Rse | C23: R_s_e | D23: (m2×K)/W | E23: 0.04 | F23: N/A | G23: ISO 6946 Annex C | H23: No | I23: Default value (ISO 6946 Table 9)
A24: internal surface resistance | B24: Rsi | C24: R_s_i | D24: (m2×K)/W | E24: 0.17 | F24: 0.1…0,17 | G24: ISO 6946 Annex C | H24: No | I24: Default value (ISO 6946 Table 9)
A27: Identifiers for constants
A28: specific heat capacity of air at constant pressure | B28: cp | C28: c_p | D28: J/(kg·K) | E28: 1008 | G28: ISO 13370 | H28: No | I28: Default value (ISO 13370 Table 8)
A30: Identifiers for periodic heat flows
A31: time lead of the heat flow cycle compared with that of the internal temperature | B31: a | C31: alpha | D31: months | E31: 0 | F31: 0…6 | G31: ISO 13370 Annex H | H31: No | I31: Default value (ISO 13370 Table H2)
A32: time lag of the heat flow cycle compared with that of the external temperature | B32: b | C32: beta | D32: months | E32: 1 | F32: 0…6 | G32: ISO 13370 Annex H | H32: No | I32: Default value (ISO 13370 Table H2)
A33: month number in which the minimum external temperature occurs | B33: t | C33: tau | D33: - | E33: 1 | F33: 1 or 7 | G33: ISO 13370 Annex C | H33: No | I33: tau = 1 in the northern hemisphere and tau = 7 in the southern hemisphere
A34: annual mean internal temperature | C34: theta_int_an | D34: °C | E34: 20 | F34: -50…+50 | G34: ISO 52016-1 | H34: No | I34: Typically: the average between heating and cooling set point; see also next line (amplitude)
A35: amplitude of internal temperature variations | C35: theta_int_amp | D35: K | E35: 2 | F35: -50…+50 | G35: ISO 52016-1 | H35: No | I35: = Half of the difference between the expected monthly max (e.g.: cooling set point) and monthly min (e.g.: heating set point)
A36: annual mean external temperature | C36: theta_e_an | D36: °C | E36: 10 | F36: -50…+50 | G36: ISO 52016-1 | H36: No | I36: Should match the annual mean value of the monthly mean outdoor temperature; see also next line (amplitude)
A37: amplitude of external temperature variations | C37: theta_e_amp | D37: K | E37: 12 | F37: -50…+50 | G37: ISO 52016-1 | H37: No | I37: = Half of the difference between the highest and the lowest monthly mean outdoor temperature

Sheet Method_calculation
A1: THIS IS A MANDATORY SHEET One time step calculation shall be described here. For each calculation step (= 1 row) data for the formula in column D shall be taken from the "Method_input" sheet or previous calculation steps. Include in the column "Formula ref" its number in the standard text. The example is based on EN 15316-4-1:2008 Copy and paste a copy of the equation into column "Formula" Use the column note for information on the calculation
A3: Description | B3: Symbol | C3: Unit | D3: Value | F3: Notes | P3: Formula ref | Q3: Formula | R3: Notes
F4: See also: Column P: formula reference Column Q: copy of the formula Column R: Notes
A5: Characteristic dimension of floor | B5: B | C5: m | D5: =Method_input!E6/(0.5*Method_input!E7) -> 5 | P5: Formula 2
A6: Equivalent thickness of ground | C6: m | D6: =Method_input!E9+Method_input!E17*(Method_input!E24+Method_input!E16+Method_input!E23) -> 5.72 | P6: Formula 3
A7: Thermal transmittance, including the effect of the ground If df;sog < B (uninsulated and moderately insulated floors): | B7: Uf;sog | C7: W/(m².K) | D7: =((2*Method_input!E17)/((PI()*D5+D6))*LN((PI()*D5/D6)+1)) -> 0.2465428827 | P7: Formula 4
A8: Thermal transmittance, including the effect of the ground If df;sog > B (well-insulated floors): | B8: Uf;sog | C8: W/(m².K) | D8: =(Method_input!E17)/(0.457*D5+D6) -> 0.2498438476 | P8: Formula 5
A9: Applicable in this case | B9: Uf;sog | C9: W/(m².K) | D9: =IF(D6<D5,D7,D8) -> 0.2498438476 | P9: Formula 4 or Formula 5
A10: Effective thermal resistance of floor construction (including the effect of the ground) | B10: Rf;eff | C10: m²·K/W | D10: =1/D9-Method_input!E24 -> 3.8325 | P10: Formula 20 (rev) | Q10: DIS: Rf;eff = Rf + Rg + Rv Improved: Rf;eff = 1/U – Rsi | R10: This is an improvement compared to the DIS: simpler, more direct formula (result is the same)
A11: Steady state heat transfer coefficient | B11: Hg | C11: W/K | D11: =Method_input!E6*D9+Method_input!E7*Method_input!E15 -> 26.98438476 | P11: Formula 1 | R11: Note: this quantity includes both the annual-average effect of the ground and the linear perimeter heat transfer.
A12: periodic heat transfer coefficient related to internal temperature variations | B12: Hpi | C12: W/K | D12: =Method_input!E6*Method_input!E17/D6*SQRT(2/((1+Method_input!E19/D6)^2+1)) -> 26.6922085 | P12: Formula H.4
A13: Periodic heat transfer coefficient related to external temperature variations | B13: Hpe | C13: W/K | D13: =0.37*Method_input!E7*Method_input!E17*LN(Method_input!E19/D6+1) -> 13.15208338 | P13: Formula H.5
A14: The thermal resistance of 0,5 m of ground | B14: Rg | C14: m²·K/W | D14: =0.5/Method_input!E17 -> 0.25
A15: The thermal capacity of 0,5 m of ground | B15: κg | C15: J/(m²·K) | D15: =0.5*Method_input!E18 -> 1000000
A16: Thermal resistance of virtual layer | B16: Rve | C16: m2K/W | D16: =1/D9-Method_input!E24-Method_input!E16-D14 -> 1.0825 | R16: Note: this quantity includes the annual-average effect of the ground on the transmission; the linear perimeter heat transfer is not included: this is included in theta_v
A17: Varying outputs : time step is one month : data shown for ach month
A18: month number | B18: m | C18: - | D18: 1 | E18: =+D18+1 -> 2 | F18: =+E18+1 -> 3 | G18: 4 | H18: 5 | I18: 6 | J18: 7 | K18: 8 | L18: 9 | M18: 10 | N18: 11 | O18: =+N18+1 -> 12
A19: internal temperature in month m | B19: qint,m | C19: °C | D19: =Method_input!$E$34-Method_input!$E$35*COS(2*PI()*(D18-Method_input!$E$33)/12) -> 18 | E19: =Method_input!$E$34-Method_input!$E$35*COS(2*PI()*(E18-Method_input!$E$33)/12) -> 18.26794919 | F19: =Method_input!$E$34-Method_input!$E$35*COS(2*PI()*(F18-Method_input!$E$33)/12) -> 19 | G19: =Method_input!$E$34-Method_input!$E$35*COS(2*PI()*(G18-Method_input!$E$33)/12) -> 20 | H19: =Method_input!$E$34-Method_input!$E$35*COS(2*PI()*(H18-Method_input!$E$33)/12) -> 21 | I19: =Method_input!$E$34-Method_input!$E$35*COS(2*PI()*(I18-Method_input!$E$33)/12) -> 21.73205081 | J19: =Method_input!$E$34-Method_input!$E$35*COS(2*PI()*(J18-Method_input!$E$33)/12) -> 22 | K19: =Method_input!$E$34-Method_input!$E$35*COS(2*PI()*(K18-Method_input!$E$33)/12) -> 21.73205081 | L19: =Method_input!$E$34-Method_input!$E$35*COS(2*PI()*(L18-Method_input!$E$33)/12) -> 21 | M19: =Method_input!$E$34-Method_input!$E$35*COS(2*PI()*(M18-Method_input!$E$33)/12) -> 20 | N19: =Method_input!$E$34-Method_input!$E$35*COS(2*PI()*(N18-Method_input!$E$33)/12) -> 19 | O19: =Method_input!$E$34-Method_input!$E$35*COS(2*PI()*(O18-Method_input!$E$33)/12) -> 18.26794919 | P19: Formula C.1
A20: external temperature in month m | B20: qe,m | C20: °C | D20: =Method_input!$E$36-Method_input!$E$37*COS(2*PI()*(D18-Method_input!$E$33)/12) -> -2 | E20: =Method_input!$E$36-Method_input!$E$37*COS(2*PI()*(E18-Method_input!$E$33)/12) -> -0.3923048454 | F20: =Method_input!$E$36-Method_input!$E$37*COS(2*PI()*(F18-Method_input!$E$33)/12) -> 4 | G20: =Method_input!$E$36-Method_input!$E$37*COS(2*PI()*(G18-Method_input!$E$33)/12) -> 10 | H20: =Method_input!$E$36-Method_input!$E$37*COS(2*PI()*(H18-Method_input!$E$33)/12) -> 16 | I20: =Method_input!$E$36-Method_input!$E$37*COS(2*PI()*(I18-Method_input!$E$33)/12) -> 20.39230485 | J20: =Method_input!$E$36-Method_input!$E$37*COS(2*PI()*(J18-Method_input!$E$33)/12) -> 22 | K20: =Method_input!$E$36-Method_input!$E$37*COS(2*PI()*(K18-Method_input!$E$33)/12) -> 20.39230485 | L20: =Method_input!$E$36-Method_input!$E$37*COS(2*PI()*(L18-Method_input!$E$33)/12) -> 16 | M20: =Method_input!$E$36-Method_input!$E$37*COS(2*PI()*(M18-Method_input!$E$33)/12) -> 10 | N20: =Method_input!$E$36-Method_input!$E$37*COS(2*PI()*(N18-Method_input!$E$33)/12) -> 4 | O20: =Method_input!$E$36-Method_input!$E$37*COS(2*PI()*(O18-Method_input!$E$33)/12) -> -0.3923048454 | P20: Formula C.2
A21: annual average rate of heat flow | B21: Fsteady;m | C21: W | D21: =$D$11*(Method_input!$E$34-Method_input!$E$36) -> 269.8438476 | E21: =$D$11*(Method_input!$E$34-Method_input!$E$36) -> 269.8438476 | F21: =$D$11*(Method_input!$E$34-Method_input!$E$36) -> 269.8438476 | G21: =$D$11*(Method_input!$E$34-Method_input!$E$36) -> 269.8438476 | H21: =$D$11*(Method_input!$E$34-Method_input!$E$36) -> 269.8438476 | I21: =$D$11*(Method_input!$E$34-Method_input!$E$36) -> 269.8438476 | J21: =$D$11*(Method_input!$E$34-Method_input!$E$36) -> 269.8438476 | K21: =$D$11*(Method_input!$E$34-Method_input!$E$36) -> 269.8438476 | L21: =$D$11*(Method_input!$E$34-Method_input!$E$36) -> 269.8438476 | M21: =$D$11*(Method_input!$E$34-Method_input!$E$36) -> 269.8438476 | N21: =$D$11*(Method_input!$E$34-Method_input!$E$36) -> 269.8438476 | O21: =$D$11*(Method_input!$E$34-Method_input!$E$36) -> 269.8438476 | P21: Formula C.3
A22: periodic heat flow due to internal temperature variation | B22: Fper;int;m | C22: W | D22: =-$D$12*Method_input!$E$35*COS(2*PI()*(D18-Method_input!$E$33+Method_input!$E$31)/12) -> -53.384417 | E22: =-$D$12*Method_input!$E$35*COS(2*PI()*(E18-Method_input!$E$33+Method_input!$E$31)/12) -> -46.23226129 | F22: =-$D$12*Method_input!$E$35*COS(2*PI()*(F18-Method_input!$E$33+Method_input!$E$31)/12) -> -26.6922085 | G22: =-$D$12*Method_input!$E$35*COS(2*PI()*(G18-Method_input!$E$33+Method_input!$E$31)/12) -> -3.2701918e-15 | H22: =-$D$12*Method_input!$E$35*COS(2*PI()*(H18-Method_input!$E$33+Method_input!$E$31)/12) -> 26.6922085 | I22: =-$D$12*Method_input!$E$35*COS(2*PI()*(I18-Method_input!$E$33+Method_input!$E$31)/12) -> 46.23226129 | J22: =-$D$12*Method_input!$E$35*COS(2*PI()*(J18-Method_input!$E$33+Method_input!$E$31)/12) -> 53.384417 | K22: =-$D$12*Method_input!$E$35*COS(2*PI()*(K18-Method_input!$E$33+Method_input!$E$31)/12) -> 46.23226129 | L22: =-$D$12*Method_input!$E$35*COS(2*PI()*(L18-Method_input!$E$33+Method_input!$E$31)/12) -> 26.6922085 | M22: =-$D$12*Method_input!$E$35*COS(2*PI()*(M18-Method_input!$E$33+Method_input!$E$31)/12) -> 9.810575401e-15 | N22: =-$D$12*Method_input!$E$35*COS(2*PI()*(N18-Method_input!$E$33+Method_input!$E$31)/12) -> -26.6922085 | O22: =-$D$12*Method_input!$E$35*COS(2*PI()*(O18-Method_input!$E$33+Method_input!$E$31)/12) -> -46.23226129
A23: periodic heat flow due to external temperature variation | B23: Fper;e;m | C23: W | D23: =$D$13*Method_input!$E$37*COS(2*PI()*(D18-Method_input!$E$33-Method_input!$E$32)/12) -> 136.6804598 | E23: =$D$13*Method_input!$E$37*COS(2*PI()*(E18-Method_input!$E$33-Method_input!$E$32)/12) -> 157.8250006 | F23: =$D$13*Method_input!$E$37*COS(2*PI()*(F18-Method_input!$E$33-Method_input!$E$32)/12) -> 136.6804598 | G23: =$D$13*Method_input!$E$37*COS(2*PI()*(G18-Method_input!$E$33-Method_input!$E$32)/12) -> 78.91250028 | H23: =$D$13*Method_input!$E$37*COS(2*PI()*(H18-Method_input!$E$33-Method_input!$E$32)/12) -> 9.667952779e-15 | I23: =$D$13*Method_input!$E$37*COS(2*PI()*(I18-Method_input!$E$33-Method_input!$E$32)/12) -> -78.91250028 | J23: =$D$13*Method_input!$E$37*COS(2*PI()*(J18-Method_input!$E$33-Method_input!$E$32)/12) -> -136.6804598 | K23: =$D$13*Method_input!$E$37*COS(2*PI()*(K18-Method_input!$E$33-Method_input!$E$32)/12) -> -157.8250006 | L23: =$D$13*Method_input!$E$37*COS(2*PI()*(L18-Method_input!$E$33-Method_input!$E$32)/12) -> -136.6804598 | M23: =$D$13*Method_input!$E$37*COS(2*PI()*(M18-Method_input!$E$33-Method_input!$E$32)/12) -> -78.91250028 | N23: =$D$13*Method_input!$E$37*COS(2*PI()*(N18-Method_input!$E$33-Method_input!$E$32)/12) -> -2.900385834e-14 | O23: =$D$13*Method_input!$E$37*COS(2*PI()*(O18-Method_input!$E$33-Method_input!$E$32)/12) -> 78.91250028
A24: average rate of heat flow in month m | B24: Fm | C24: W | D24: =D21+D22+D23 -> 353.1398904 | E24: =E21+E22+E23 -> 381.4365869 | F24: 379.8320989 | G24: 348.7563479 | H24: 296.5360561 | I24: 237.1636086 | J24: 186.5478048 | K24: 158.2511083 | L24: 159.8555963 | M24: 190.9313473 | N24: 243.1516391 | O24: 302.5240866
A25: virtual temperature in ground in month m | B25: qv,m | C25: °C | D25: =D19-D24/(Method_input!$E$6*$D9) -> 3.865575886 | E25: =E19-E24/(Method_input!$E$6*$D9) -> 3.000949803 | F25: =F19-F24/(Method_input!$E$6*$D9) -> 3.79722024 | G25: =G19-G24/(Method_input!$E$6*$D9) -> 6.041027176 | H25: =H19-H24/(Method_input!$E$6*$D9) -> 9.131144355 | I25: =I19-I24/(Method_input!$E$6*$D9) -> 12.23957737 | J25: =J19-J24/(Method_input!$E$6*$D9) -> 14.53342411 | K25: =K19-K24/(Method_input!$E$6*$D9) -> 15.3980502 | L25: =L19-L24/(Method_input!$E$6*$D9) -> 14.60177976 | M25: =M19-M24/(Method_input!$E$6*$D9) -> 12.35797282 | N25: =N19-N24/(Method_input!$E$6*$D9) -> 9.267855645 | O25: =O19-O24/(Method_input!$E$6*$D9) -> 6.159422627 | P25: Formula F.2
A26: ground heat transfer coefficient in month m adjusted to monthly temp.diff. (See comment in column R) | B26: Hg,m | C26: W/K | D26: =D24/(D19-D20) -> 17.65699452 | E26: =E24/(E19-E20) -> 20.44112508 | F26: 25.32213993 | G26: 34.87563479 | H26: 59.30721122 | I26: 177.0213274 | K26: 118.1202353 | L26: 31.97111925 | M26: 19.09313473 | N26: 16.21010927 | O26: 16.21221694 | P26: Formula C.10 | R26: According to DIS. However, this quantity appears unsuited, because the monthly ground heat flow is not related to the monthly temp.difference. This leads to extreme values (including division by zero). Proposed improved formula: see next row
A27: ground heat transfer coefficient related to annual temperature difference, in month m | B27: Hg,an,m | C27: W/K | D27: =D24/(Method_input!$E$34-Method_input!$E$36) -> 35.31398904 | E27: =E24/(Method_input!$E$34-Method_input!$E$36) -> 38.14365869 | F27: =F24/(Method_input!$E$34-Method_input!$E$36) -> 37.98320989 | G27: =G24/(Method_input!$E$34-Method_input!$E$36) -> 34.87563479 | H27: =H24/(Method_input!$E$34-Method_input!$E$36) -> 29.65360561 | I27: =I24/(Method_input!$E$34-Method_input!$E$36) -> 23.71636086 | J27: =J24/(Method_input!$E$34-Method_input!$E$36) -> 18.65478048 | K27: =K24/(Method_input!$E$34-Method_input!$E$36) -> 15.82511083 | L27: =L24/(Method_input!$E$34-Method_input!$E$36) -> 15.98555963 | M27: =M24/(Method_input!$E$34-Method_input!$E$36) -> 19.09313473 | N27: =N24/(Method_input!$E$34-Method_input!$E$36) -> 24.31516391 | O27: =O24/(Method_input!$E$34-Method_input!$E$36) -> 30.25240866 | P27: Formula C.10 (rev) | R27: This is an improvement compared to the DIS, based on validation of the links with ISO/DIS 52016-1 (monthly and hourly calculation of energy need for heating and cooling
A28: Monthly temperature difference | B28: (qint;m - qe;m) | C28: K | D28: =D19-D20 -> 20 | E28: 18.66025404 | F28: 15 | G28: 10 | H28: 5 | I28: 1.339745962 | J28: 0 | K28: 1.339745962 | L28: 5 | M28: 10 | N28: 15 | O28: 18.66025404
A29: Per season (for overall Htr) | D29: Heating season | E29: Cooling season | F29: Hemisphere
A30: Ground heat transfer coefficient for H resp. C, related to annual average temp.difference | B30: Hg;H/C (related to annual average temp.diff.) | C30: W/K | D30: =+(SUM(D27:O27)-IF(Method_calculation!E34>5,SUM(M27:O27)+SUM(D27:F27),SUM(G27:L27)))/6 -> 30.85026082 | E30: =+SUM(D27:O27)/6-D30 -> 23.1185087 | F30: =+IF(Method_input!$E$33<6,"Northern hemisphere", "Southern hemisphere") -> Northern hemisphere
A31: Seasonal temperature difference | B31: (qint;m - qe;m)mn;H/C | C31: K | D31: =+(SUM(D28:O28)-IF(Method_input!E33>5,SUM(M28:O28)+SUM(D28:F28),SUM(G28:L28)))/6 -> 16.22008468 | E31: =+SUM(D28:O28)/6-D31 -> 3.779915321 | F31: =+IF(Method_input!$E$33<6,"Northern hemisphere", "Southern hemisphere") -> Northern hemisphere
A32: Ground heat transfer coefficient for H resp. C, adjusted to seasonal average temp.difference | B32: Hg;H/C;adj (adjusted to seas. temp.diff.) | C32: W/K | D32: =+D30*(Method_input!E34-Method_input!E36)/D31 -> 19.01979024 | E32: =+D30*(Method_input!$E$34-Method_input!$E$36)/E31 -> 81.61627498 | F32: =+IF(Method_input!$E$33<6,"Northern hemisphere", "Southern hemisphere") -> Northern hemisphere

Sheet Method_output
A1: THIS IS A MANDATORY SHEET Output of one step calculation shall be indicated here. Each cell in the column value shall be a reference to a single cell in the "Method_calculation" sheet. The macro will take the calculation step results and fill the values table in the "Output_series" sheet.
A4: Name | B4: Symbol | C4: Software name | D4: Unit | E4: Value | F4: Range | G4: Intended destination | H4: Varying | Q4: Notes
A5: Thermal transmittance of slab on ground floor | B5: Uf;sog | C5: U_f_sog | D5: W/(m2·K) | E5: =Method_calculation!$D$9 -> 0.2498438476 | F5: 0…∞ | G5: M 2-5 | H5: No
A6: Thermal transmittance of suspended floor | B6: Uf | D6: W/(m2·K) | F6: 0…∞ | G6: M2-5 | H6: No
A7: Thermal transmittance of basement wall | B7: Uw;b | D7: W/(m2·K) | F7: 0…∞ | G7: M2-5 | H7: No
A8: Thermal transmittance of basement floor | B8: Uf;b | D8: W/(m2·K) | F8: 0…∞ | G8: M2-5 | H8: No
A9: Thermal transmittance of the whole basement | B9: Ub | D9: W/(m2·K) | F9: 0…∞ | G9: M2-5 | H9: No
A10: Effective thermal resistance of floor construction (including the effect of the ground) | B10: Rf;eff | C10: R_f_eff | D10: m2K/W | E10: =Method_calculation!D10 -> 3.8325 | F10: 0…∞ | G10: M2-5 | H10: No
A11: Thermal resistance of suspended floor | B11: Rf | D11: m2K/W | F11: 0…∞ | G11: M2-5 | H11: No
A12: Thermal resistance of basement wall | B12: Rw;b | D12: m2K/W | F12: 0…∞ | G12: M2-5 | H12: No
A13: Thermal resistance of basement floor | B13: Rf;b | D13: m2K/W | F13: 0…∞ | G13: M2-5 | H13: No
A14: Thermal resistance of the whole basement | B14: Rf;b | D14: m2K/W | F14: 0…∞ | G14: M2-5 | H14: No
A15: Ground heat transfer coefficient for heating, adjusted to seasonal average temp.difference | B15: Hg;H;adj | C15: H_g_H_adj | D15: W/K | E15: =Method_calculation!D32 -> 19.01979024 | F15: 0…∞ | G15: M2-5 | H15: No
A16: Ground heat transfer coefficient for cooling adjusted to seasonal average temp.difference | B16: Hg;C;adj | C16: H_g_C_adj | D16: W/K | E16: =Method_calculation!E32 -> 81.61627498 | F16: 0…∞ | G16: M2-5 | H16: No
A17: The thermal resistance of 0,5 m of ground | B17: Rg | C17: R_g | D17: m²·K/W | E17: =Method_calculation!D14 -> 0.25 | F17: 0…∞ | G17: M2-5 | H17: No
A18: The thermal capacity of 0,5 m of ground | B18: κg | C18: kappa_g | D18: J/(m²·K) | E18: =Method_calculation!D15 -> 1000000 | F18: 0…∞ | G18: M2-5 | H18: No
A19: Thermal resistance of virtual layer | B19: Rve;m | C19: R_ve_m | D19: m2K/W | E19: =Method_calculation!D16 -> 1.0825 | F19: 0…∞ | G19: M2-5 | H19: No
A21: Monthly values
A22: month number | B22: m | C22: m | D22: - | E22: 1 | F22: =+E22+1 -> 2 | G22: =+F22+1 -> 3 | H22: 4 | I22: 5 | J22: 6 | K22: 7 | L22: 8 | M22: 9 | N22: 10 | O22: 11 | P22: =+O22+1 -> 12
A23: virtual temperature in ground in month m | B23: qv,m | C23: theta_v_m | D23: °C | E23: =Method_calculation!D25 -> 3.865575886 | F23: =Method_calculation!E25 -> 3.000949803 | G23: =Method_calculation!F25 -> 3.79722024 | H23: =Method_calculation!G25 -> 6.041027176 | I23: =Method_calculation!H25 -> 9.131144355 | J23: =Method_calculation!I25 -> 12.23957737 | K23: =Method_calculation!J25 -> 14.53342411 | L23: =Method_calculation!K25 -> 15.3980502 | M23: =Method_calculation!L25 -> 14.60177976 | N23: =Method_calculation!M25 -> 12.35797282 | O23: =Method_calculation!N25 -> 9.267855645 | P23: =Method_calculation!O25 -> 6.159422627
A24: ground heat transfer coefficient related to annual temperature difference, in month m | B24: Hg,an,m | C24: H_g_an_m | D24: W/K | E24: =Method_calculation!D27 -> 35.31398904 | F24: =Method_calculation!E27 -> 38.14365869 | G24: =Method_calculation!F27 -> 37.98320989 | H24: =Method_calculation!G27 -> 34.87563479 | I24: =Method_calculation!H27 -> 29.65360561 | J24: =Method_calculation!I27 -> 23.71636086 | K24: =Method_calculation!J27 -> 18.65478048 | L24: =Method_calculation!K27 -> 15.82511083 | M24: =Method_calculation!L27 -> 15.98555963 | N24: =Method_calculation!M27 -> 19.09313473 | O24: =Method_calculation!N27 -> 24.31516391 | P24: =Method_calculation!O27 -> 30.25240866

Sheet History
B2: Date | C2: Version scope | D2: Changes, notes
B4: 2014.06.04 | C4: First draft version (internal)
B5: 2014.11.26 | C5: Updated draft version (internal) | D5: Calculation repeated to cover 12 months
B6: 2015.04.22. | C6: Embedded in ISO/DIS 52016-1 spreadsheet (ISO/TC163/SC 2 N document, for public distribution) | D6: Adapted and integrated in spreadsheet of ISO/DIS 52016-1
B7: 2015.06.03 | C7: ISO/TC163/SC 2 N document, for public distribution | D7: Version embedded in spreadsheet of ISO/DIS 52016-1 reviewed and used as basis for this stand alone version (including few corrections)
